[Event "Fall GM-A Norm Invitational 2022"]
[Site "Charlotte"]
[Date "2022.11.20"]
[Round "5"]
[White "Cordova, Emilio"]
[Black "Mulyar, Michael"]
[Result "1-0"]
[ECO "D02"]
[WhiteElo "2561"]
[BlackElo "2355"]
[Annotator "TA"]
[PlyCount "89"]
[EventDate "2022.11.18"]
[EventType "tourn"]
[EventCountry "USA"]
[SourceTitle "playchess.com"]
[Source "ChessBase"]
[SourceQuality "1"]
[TimeControl "5400+30"]

{[%evp 15,89,0,0,-5,0,-8,15,21,5,-2,-10,-16,0,-12,0,-50,-45,-79,-85,-66,-24,-49,-31,-43,16,0,33,24,30,33,69,45,62,49,79,91,80,80,80,73,113,118,109,100,129,121,128,130,135,121,127,64,89,56,85,88,79,28,89,91,90,90,110,101,121,115,130,134,290,289,652,650,629,596,1611,1516]} 1. d4 {[%emt 0:01:41]} d5 {[%emt 0:00:09]} 2. Nf3 {[%emt 0:00:27]} Nf6 {[%emt 0:00:11]} 3. c3 {[%emt 0:01:20]} e6 {[%emt 0:01:43]} 4. Bf4 {[%emt 0:02:16]} c5 {[%emt 0:00:51]} 5. e3 {[%emt 0:00:07]} Nc6 {[%emt 0:00:18]} 6. Nbd2 {[%emt 0:00:12]} Bd6 {[%emt 0:00:17]} 7. Bg3 {[%emt 0:00:15]} O-O {[%emt 0:00:14]} 8. Bd3 {[%emt 0:00:17]} b6 {[%emt 0:00:07]} 9. Qe2 {[%emt 0:00:53] D02: 1 d4 d5 2 Nf3 sidelines, including 2...Nf6 3 g3 and 2...Nf6 3 Bf4.} Bb7 {[%emt 0:00:14]} 10. Rd1 {[%emt 0:00:40]} a5 {[%emt 0:00:13]} 11. e4 {[%emt 0:02:48] The position is equal.} Be7 {[%emt 0:01:04]} 12. e5 {[%emt 0:05:57]} Nh5 {[%emt 0:00:12]} 13. a3 {[%emt 0:00:31]} g6 {[%emt 0:11:13]} 14. Qe3 {[%emt 0:07:59]} Ba6 {[%emt 0:02:28]} 15. Bb1 {[%emt 0:01:26] [#]} (15. Bxa6 $11 Rxa6 16. h3) 15... Qd7 $146 {[%emt 0:17:18]} ({Predecessor:} 15... cxd4 16. cxd4 a4 17. Bf4 f6 18. Bh6 Re8 19. Bd3 Bxd3 20. Qxd3 fxe5 21. Nxe5 Nxe5 22. dxe5 {½-½ (75) Habans Aguerrea,J (1892)-Cnejev,V (1810) Santiago de Compostela 2018}) 16. Nb3 {[%emt 0:07:43]} a4 {[%emt 0:12:23]} 17. Nc1 {[%emt 0:01:38]} Na5 {[%emt 0:00:03] Threatens to win with ...cxd4.} 18. Nd3 {[%emt 0:00:23]} Nc4 {[%emt 0:00:53]} 19. Qe2 {[%emt 0:09:46]} Ng7 {[%emt 0:10:59]} (19... Qb5 $15) 20. O-O {[%emt 0:06:06]} Rfc8 {[%emt 0:05:39]} 21. Bf4 $1 {[%emt 0:03:53]} cxd4 {[%emt 0:05:04]} 22. Nxd4 {[%emt 0:02:20]} Bf8 {[%emt 0:00:20]} 23. g4 {[%emt 0:01:26]} Na5 {[%emt 0:06:16]} 24. Be3 {[%emt 0:05:44]} Rab8 {[%emt 0:05:25]} 25. f4 {[%emt 0:00:45][%cal Of4f5]} Nb3 {[%emt 0:00:05]} 26. Nxb3 {[%emt 0:08:19]} axb3 {[%emt 0:00:04]} 27. Qf2 {[%emt 0:00:50]} Bxd3 {[%emt 0:07:17]} 28. Bxd3 {[%emt 0:00:08]} Bc5 {[%emt 0:00:07]} 29. Bd4 {[%emt 0:04:06]} Qe7 {[%emt 0:00:45]} 30. Qg3 {[%emt 0:02:22]} Kh8 {[%emt 0:03:02]} 31. Kh1 {[%emt 0:00:10]} Bxd4 {[%emt 0:01:44]} 32. cxd4 {[%emt 0:00:15]} f5 {[%emt 0:00:30]} 33. gxf5 {[%emt 0:03:38]} (33. exf6 $1 $16 Qxf6 34. Ba6) 33... exf5 {[%emt 0:00:23]} 34. Ba6 {[%emt 0:01:01]} Rd8 {[%emt 0:03:29]} 35. Qxb3 {[%emt 0:00:12]} Ne6 {[%emt 0:00:13]} 36. a4 {[%emt 0:00:56]} (36. Bb5 $16) 36... Qa7 {[%emt 0:01:34]} (36... Ra8 $11 {keeps the balance.} 37. Bb5 (37. Qxb6 Rdb8 $17) 37... Rac8) 37. Bb5 $16 {[%emt 0:01:18]} Rbc8 {[%emt 0:00:20]} 38. Qb4 {[%emt 0:00:54] Prevents Qe7.} Qg7 {[%emt 0:01:57]} 39. Rd3 {[%emt 0:01:37]} Qh6 {[%emt 0:01:31]} 40. Qe7 {[%emt 0:07:20]} Nxf4 {[%emt 0:00:05]} 41. Rc3 {[%emt 0:00:30] Strongly threatening Qf6+. Really sharp! White is much more active.} Nh5 {[%emt 0:02:36] [#] Inhibits Qf6+. A mistake that costs the game.} (41... Rf8 $16) 42. e6 $1 $18 {[%emt 0:01:34]} Rf8 $2 {[%emt 0:00:40]} (42... f4 43. Rxc8 Rxc8) 43. Qd6 {[%emt 0:00:31][%csl LRb6,LRd5] White is clearly winning.} Rxc3 {[%emt 0:01:21]} 44. bxc3 {[%emt 0:00:09] Hoping for e7.} g5 {[%emt 0:00:25]} 45. Qe5+ {[%emt 0:00:20] Weighted Error Value: White=0.10 (very precise) /Black=0.37} 1-0

[Event "Fall GM-A Norm Invitational 2022"]
[Site "Charlotte"]
[Date "2022.11.20"]
[Round "5"]
[White "Fus, Jakub"]
[Black "Mardov, Dimitar"]
[Result "1/2-1/2"]
[ECO "A07"]
[WhiteElo "2427"]
[BlackElo "2432"]
[Annotator "TA"]
[PlyCount "77"]
[EventDate "2022.11.18"]
[EventType "tourn"]
[EventCountry "USA"]
[SourceTitle "playchess.com"]
[Source "ChessBase"]
[SourceQuality "1"]
[TimeControl "5400+30"]

{[%evp 9,77,15,13,14,31,21,18,17,20,25,18,21,16,16,19,19,15,8,8,6,5,0,19,19,22,31,40,43,34,30,43,-14,-2,-3,-18,-12,0,0,0,0,0,0,0,0,0,0,0,0,0,0,8,0,0,0,0,0,0,0,0,0,0,0,0,0,0,0,0,0,8,8]} 1. Nf3 {[%emt 0:00:07]} d5 {[%emt 0:01:02]} 2. g3 {[%emt 0:01:25]} Bg4 {[%emt 0:00:23]} 3. Bg2 {[%emt 0:00:37]} Nd7 {[%emt 0:00:24]} 4. h3 {[%emt 0:00:57]} Bh5 {[%emt 0:00:41]} 5. d4 {[%emt 0:00:44]} e6 {[%emt 0:03:45]} 6. O-O {[%emt 0:01:17] A07: Réti Opening: New York and Capablanca Systems.} Ngf6 {[%emt 0:05:03]} 7. c4 {[%emt 0:00:28]} c6 {[%emt 0:03:12]} 8. cxd5 {[%emt 0:02:05]} exd5 {[%emt 0:01:42]} 9. Nh4 {[%emt 0:07:18] 9.Ne5 gains popularity.} Bg6 {[%emt 0:08:19]} 10. Nc3 {[%emt 0:01:40]} Be7 {[%emt 0:05:34]} 11. Nxg6 {[%emt 0:01:26]} hxg6 {[%emt 0:00:30]} 12. Qd3 {[%emt 0:01:57]} O-O {[%emt 0:01:46]} 13. Bf4 {[%emt 0:00:39]} Re8 {[%emt 0:03:39] [#]} 14. h4 $146 {[%emt 0:05:08]} ({Predecessor:} 14. Rfe1 Nb6 15. Rad1 Qd7 16. Bg5 Rad8 17. h4 Nh7 18. Bxe7 Rxe7 {½-½ (49) Vachier Lagrave,M (2762)-Laznicka,V (2679) Dubai 2014}) 14... Nf8 {[%emt 0:05:18]} 15. Rad1 {[%emt 0:06:51]} Bd6 {[%emt 0:04:10]} 16. Bg5 {[%emt 0:02:05]} N8h7 {[%emt 0:06:07]} 17. Bxf6 {[%emt 0:19:44]} gxf6 {[%emt 0:07:35]} 18. e4 {[%emt 0:03:36] Against f5} dxe4 {[%emt 0:01:04]} 19. Nxe4 {[%emt 0:01:13][%cal Oh4h5]} f5 {[%emt 0:01:31]} 20. Nc5 {[%emt 0:03:30]} (20. Nxd6 $14 Qxd6 21. Qb3) 20... Bxc5 $11 {[%emt 0:09:43] The position is equal.} 21. dxc5 {[%emt 0:00:16]} Qxd3 {[%emt 0:00:47]} (21... Qe7 {keeps more tension.} 22. h5 Rad8 23. Qc2 Rxd1 24. Rxd1 Qe2) 22. Rxd3 {[%emt 0:00:05]} Nf6 {[%emt 0:01:11]} 23. Rb3 {[%emt 0:02:00]} Re7 {[%emt 0:00:49]} 24. Rd1 {[%emt 0:00:04] Inhibits Rd8.} Rae8 {[%emt 0:01:05]} 25. Bf3 {[%emt 0:04:08]} Kg7 {[%emt 0:01:31]} 26. Rd4 {[%emt 0:03:58]} Rc7 {[%emt 0:02:02]} 27. Kf1 {[%emt 0:03:07]} Nd7 {[%emt 0:02:42]} 28. Rc3 {[%emt 0:00:14]} Re5 {[%emt 0:01:17]} 29. b4 {[%emt 0:00:09]} Nf6 {[%emt 0:02:08]} 30. Rc2 {[%emt 0:02:37]} Rce7 {[%emt 0:01:05]} 31. Re2 {[%emt 0:00:24]} Rxe2 {[%emt 0:00:38]} 32. Bxe2 {[%emt 0:00:08][%mdl 4096] Endgame KRB-KRN} Re5 {[%emt 0:06:20]} 33. Bf3 {[%emt 0:03:13]} a5 {[%emt 0:00:23]} 34. a3 {[%emt 0:01:45]} axb4 {[%emt 0:00:31]} 35. axb4 {[%emt 0:00:57]} Re7 {[%emt 0:01:28]} 36. b5 {[%emt 0:04:27]} cxb5 {[%emt 0:01:18]} 37. Rb4 {[%emt 0:00:03]} Rc7 {[%emt 0:01:16]} 38. Rxb5 {[%emt 0:00:15]} Nd7 {[%emt 0:00:07]} 39. Rxb7 {[%emt 0:00:20] Weighted Error Value: White=0.04 (flawless) /Black=0.02 (flawless)} 1/2-1/2

[Event "Fall GM-A Norm Invitational 2022"]
[Site "Charlotte"]
[Date "2022.11.20"]
[Round "5"]
[White "Kaliksteyn, Alexander"]
[Black "Preotu, Razvan"]
[Result "0-1"]
[ECO "A48"]
[WhiteElo "2389"]
[BlackElo "2493"]
[Annotator "TA"]
[PlyCount "88"]
[EventDate "2022.11.18"]
[EventType "tourn"]
[EventCountry "USA"]
[SourceTitle "playchess.com"]
[Source "ChessBase"]
[SourceQuality "1"]
[TimeControl "5400+30"]

{[%evp 15,88,13,18,0,0,-4,6,8,23,0,45,25,46,38,32,0,0,-5,-5,-58,-73,-77,0,-77,-31,-29,0,0,0,-56,-41,-35,-31,-58,-41,-76,-58,-129,-133,-141,-102,-108,-29,-27,0,0,35,0,0,0,0,-86,-73,-106,-108,-133,-133,-317,-319,-606,-593,-697,-693,-689,-685,-1010,-1010,-1010,-883,-1502,-1454,-1425,-1435,-956,-921]} 1. d4 {[%emt 0:00:03]} Nf6 {[%emt 0:03:05]} 2. Nf3 {[%emt 0:00:11]} g6 {[%emt 0:00:14]} 3. Bf4 {[%emt 0:00:08]} Bg7 {[%emt 0:00:10]} 4. e3 {[%emt 0:00:08]} d6 {[%emt 0:00:12]} 5. h3 {[%emt 0:00:11]} O-O {[%emt 0:00:13]} 6. Be2 {[%emt 0:00:52]} Nfd7 {[%emt 0:00:52]} 7. O-O {[%emt 0:01:23]} e5 {[%emt 0:00:14]} 8. Bh2 {[%emt 0:00:10]} Nc6 {[%emt 0:01:43]} 9. a4 {[%emt 0:01:39] A48: 1 d4 Nf6 2 Nf3 g6: Torre, London and Colle Systems.} a5 {[%emt 0:04:13]} 10. Nc3 {[%emt 0:02:53]} f5 {[%emt 0:01:18]} 11. Nb5 {[%emt 0:01:04] [#] The position is equal.} Kh8 $146 {[%emt 0:02:18]} (11... e4 {with more complications.} 12. Ng5 Qxg5 13. Nxc7 Rb8) ({Predecessor:} 11... e4 12. Nd2 Nf6 13. c4 Nb4 14. c5 Ne8 15. cxd6 Nxd6 16. Qb3+ Kh8 17. Nxd6 cxd6 {1-0 (43) Torkkola,H (2177)-Keso,E (2200) Jyvaskyla 2020}) 12. Ra3 {[%emt 0:21:51]} exd4 {[%emt 0:13:06]} 13. exd4 {[%emt 0:09:09]} ({Don't play} 13. Nbxd4 Nc5 $15) 13... Nf6 {[%emt 0:06:24]} 14. Re1 {[%emt 0:02:17]} Be6 {[%emt 0:02:12]} 15. Re3 {[%emt 0:05:55]} Bg8 {[%emt 0:00:29]} 16. Bf1 {[%emt 0:00:32]} Bh6 {[%emt 0:03:05]} 17. c4 {[%emt 0:05:21]} ({Better is} 17. Ra3 $11) 17... Bxe3 $15 {[%emt 0:00:51]} 18. Rxe3 {[%emt 0:00:04]} Nb4 {[%emt 0:07:08]} (18... h6 $1 $17) 19. d5 {[%emt 0:03:15] [#]} (19. Bf4 $11) 19... Qd7 {[%emt 0:02:23]} (19... h6 $1 $17) 20. Bf4 {[%emt 0:04:55]} Qg7 {[%emt 0:04:00] Inhibits Bh6.} (20... Bxd5 $5 21. cxd5 Nbxd5 $11) 21. Re2 {[%emt 0:07:53]} h6 {[%emt 0:00:25]} 22. Qd2 {[%emt 0:04:07]} (22. Bd2 $11) 22... g5 {[%emt 0:00:08]} 23. Be3 {[%emt 0:00:06]} Rad8 {[%emt 0:06:12]} 24. b3 {[%emt 0:04:29]} c6 {[%emt 0:02:08]} 25. dxc6 {[%emt 0:02:55]} bxc6 {[%emt 0:02:13]} 26. Nxd6 {[%emt 0:00:31]} (26. Bb6 $1 $15 cxb5 27. Bxa5) 26... Ne4 $17 {[%emt 0:00:43]} 27. Nxe4 {[%emt 0:00:13][%cal Bd6e4,Be4d2,Bd2f3][%mdl 32]} Rxd2 {[%emt 0:00:06]} 28. Nexd2 {[%emt 0:00:17]} Qd7 {[%emt 0:05:22]} (28... Kh7 $17 {aiming for ...Re8.} 29. Bb6 g4 30. hxg4 fxg4) 29. Ne5 $1 $11 {[%emt 0:05:07]} Qd6 {[%emt 0:00:33]} ({Black should try} 29... Qe6 $11 30. Ndf3 Rd8) 30. Ndf3 $1 $14 {[%emt 0:00:08] Pair of Knights!} Rd8 $1 {[%emt 0:05:27]} 31. Bb6 {[%emt 0:00:20]} (31. Bd4 $5 {[%cal Re5f7]} Kh7 32. Bb6 $14) 31... c5 {[%emt 0:00:36]} 32. Bxd8 {[%emt 0:00:30]} Qxd8 {[%emt 0:00:05]} 33. Ng6+ {[%emt 0:05:47]} (33. h4 $11 {keeps the balance.}) 33... Kg7 $17 {[%emt 0:01:50][%mdl 1024] Black has strong compensation.} 34. Rd2 {[%emt 0:00:04] [#]} Qc7 {[%emt 0:04:18]} 35. Nfe5 {[%emt 0:01:38]} Be6 {[%emt 0:00:07] Against Rd7+} 36. h4 $2 {[%emt 0:00:51] This costs White the game.} (36. Be2 $17) 36... Nc6 $19 {[%emt 0:00:34][%mdl 64] Deflection} 37. Nxc6 {[%emt 0:00:22]} (37. Re2 Nd4 38. Re1) 37... Kxg6 {[%emt 0:00:42] Black is clearly winning.} 38. h5+ {[%emt 0:03:23]} Kf6 {[%emt 0:00:13]} 39. Nd8 {[%emt 0:01:51]} Bd7 {[%emt 0:00:06]} 40. g4 {[%emt 0:00:55]} Qxd8 {[%emt 0:00:16]} 41. Rd6+ {[%emt 0:00:04]} Ke7 {[%emt 0:01:41]} 42. Rxh6 {[%emt 0:00:09]} fxg4 {[%emt 0:00:16] And now ...Bf5 would win.} 43. Rh7+ {[%emt 0:01:33]} Kf6 {[%emt 0:00:17] ( -> ...Bf5)} 44. Rh6+ {[%emt 0:00:06]} Ke5 {[%emt 0:00:44] Weighted Error Value: White=0.67/Black=0.12 (very precise)} 0-1